bitfinex/quotes_ETHUSD_20220111
["timestamp","ask_amount","ask_price","bid_price","bid_amount"]
[1641928619316,1.447,3230.4,3230.3,14.94247885]
[1641928619515,1.77412,3230.5,3230.3,14.94247885]
[1641928619751,1.0,3230.4,3230.3,14.94247885]
[1641928619956,1.0,3230.5,3230.3,14.94247885]
[1641928620155,0.00113685,3230.6,3230.3,14.94247885]
[1641928631314,18.11113685,3230.6,3230.3,14.011181]
[1641928631708,18.11,3230.4,3230.3,14.011181]
[1641928631914,18.9254,3230.4,3230.3,14.011181]
[1641928632121,20.6724,3230.4,3230.3,14.011181]
[1641928637382,20.3724,3230.4,3230.3,14.011181]
[1641928637579,20.6724,3230.4,3230.3,14.011181]
[1641928642378,20.3724,3230.4,3230.3,14.011181]
[1641928642585,19.557,3230.4,3230.3,14.011181]
[1641928647111,19.857,3230.4,3230.3,14.011181]
[1641928650272,19.557,3230.4,3230.3,14.011181]
[1641928651471,19.53901405,3230.4,3230.3,14.011181]
[1641928657108,20.34748343,3230.4,3230.3,14.011181]
[1641928657861,21.84748343,3230.4,3230.3,14.011181]
[1641928660864,3.73748343,3230.4,3230.3,14.011181]
[1641928661314,2.75546938,3230.4,3230.3,14.011181]
[1641928661515,3.75546938,3230.4,3230.3,14.011181]
[1641928661721,21.86546938,3230.4,3230.3,14.011181]
[1641928667867,20.86546938,3230.4,3230.3,14.011181]
[1641928668068,2.30846938,3230.4,3230.3,14.011181]
[1641928668814,0.80846938,3230.4,3230.3,14.011181]
[1641928671719,2.30846938,3230.4,3230.3,14.011181]
[1641928673591,1.5,3230.4,3230.3,14.011181]
[1641928673784,1.5,3230.7,3230.3,14.011181]
[1641928674083,1.5,3230.7,3230.5,0.89565761]
[1641928674484,1.5,3230.7,3230.6,4.99898718]
[1641928674683,0.77394,3230.9,3230.6,4.99898718]
[1641928674884,0.00170527,3230.7,3230.6,4.4]
[1641928676132,0.00170527,3230.7,3230.5,0.89565761]
[1641928676525,0.00113685,3230.6,3230.5,0.89565761]
[1641928676926,0.00113685,3230.6,3230.5,4.99565761]
[1641928688374,0.00113685,3230.6,3230.5,0.89565761]
[1641928690577,0.00113685,3230.6,3230.3,14.011181]
[1641928690880,0.77409,3230.5,3230.3,14.011181]
[1641928691525,3.3003169,3230.5,3230.3,14.011181]
[1641928692321,21.4103169,3230.5,3230.3,14.011181]
[1641928692919,20.057,3230.4,3230.3,14.011181]
[1641928693721,20.04918725,3230.4,3230.3,14.011181]
[1641928699620,1.93918725,3230.4,3230.3,14.011181]
[1641928699819,20.04918725,3230.4,3230.3,14.011181]
[1641928701322,1.93918725,3230.4,3230.3,14.011181]
[1641928701524,20.04918725,3230.4,3230.3,14.011181]
[1641928702776,1.93918725,3230.4,3230.3,14.011181]
[1641928703177,1.49218725,3230.4,3230.3,14.011181]
[1641928703779,0.00113685,3230.6,3230.3,14.011181]
[1641928704483,0.00113685,3230.6,3230.5,3.94179282]
[1641928706827,4.04789,3231.2,3230.5,3.94179282]
[1641928707229,0.00397896,3231.1,3230.5,3.94179282]
[1641928707633,0.00341054,3231.0,3230.5,3.94179282]
[1641928708030,0.00284212,3230.9,3230.5,3.94179282]
[1641928708530,0.00227369,3230.8,3230.5,3.94179282]
[1641928708930,0.00170527,3230.7,3230.5,3.94179282]
[1641928709328,3.27393,3231.2,3230.5,3.94179282]
[1641928709329,0.00113685,3230.6,3230.5,3.94179282]
[1641928713375,0.00113685,3230.6,3230.5,0.8746642]
[1641928715424,2.26917111,3230.8,3230.5,0.8746642]
[1641928715826,0.77406,3230.8,3230.5,0.8746642]
[1641928716024,1.5481,3230.8,3230.5,0.8746642]
[1641928716426,19.6581,3230.8,3230.5,0.8746642]
[1641928716826,18.11,3230.6,3230.5,0.8746642]
[1641928717881,21.8311,3230.6,3230.3,14.011181]
[1641928718082,18.11,3230.4,3230.3,14.011181]
[1641928718683,19.61,3230.4,3230.3,14.011181]
[1641928719283,20.38419,3230.4,3230.3,14.95937726]
[1641928719888,20.68419,3230.4,3230.3,14.95937726]
[1641928721323,19.91,3230.4,3230.3,14.95937726]
[1641928721523,19.61,3230.4,3230.3,14.95937726]
[1641928724430,1.5,3230.4,3230.3,14.95937726]
[1641928725779,1.5,3231.1,3230.5,0.55385645]
[1641928726181,1.50284211,3231.1,3231.0,0.82984575]
[1641928732031,2.27682211,3231.1,3231.0,0.82984575]
[1641928732679,20.38682211,3231.1,3231.0,0.77984575]
[1641928733474,19.61284211,3231.1,3231.0,0.77984575]
[1641928734174,19.61284211,3231.1,3231.0,3.67984575]
[1641928736827,18.11284211,3231.1,3231.0,3.67984575]
[1641928737627,0.00284211,3231.1,3231.0,3.67984575]
[1641928738827,19.61284211,3231.1,3231.0,3.67984575]
[1641928740079,18.11284211,3231.1,3231.0,3.67984575]
[1641928740278,18.11284211,3231.1,3231.0,2.9]
[1641928740879,19.61284211,3231.1,3231.0,2.9]
[1641928744335,1.50284211,3231.1,3231.0,2.9]
[1641928744533,1.50284211,3231.1,3231.0,6.15029628]
[1641928744731,0.00284211,3231.1,3231.0,2.9]
[1641928745337,0.00284211,3231.1,3231.0,7.17369]
[1641928747147,6.11,3232.3,3231.6,0.77358]
[1641928747374,6.11,3232.3,3231.7,1.13024751]
[1641928747375,18.11,3232.3,3231.7,1.13024751]
[1641928747572,18.11,3232.3,3232.0,0.55371243]
[1641928747972,18.06,3232.3,3232.0,0.55371243]
[1641928748778,19.56,3232.3,3232.0,0.55371243]
[1641928750888,18.06,3232.3,3232.0,0.55371243]
[1641928751124,18.06,3232.3,3231.8,0.77356]
[1641928751728,19.56,3232.3,3231.8,0.77356]
[1641928752730,18.06,3232.3,3231.8,0.77356]
[1641928754031,18.06,3232.3,3231.8,3.67356]
[1641928755690,18.0248,3232.3,3231.8,3.67356]
[1641928758591,1.5,3232.4,3231.9,0.77352]
[1641928758876,3.00110996,3232.9,3231.9,0.77352]
[1641928759072,0.00682109,3232.3,3231.9,0.78636353]
[1641928759273,1.5,3233.0,3231.9,0.78636353]
[1641928759274,0.0096632,3232.8,3231.9,0.78636353]
[1641928759471,0.00625266,3232.2,3231.9,1.51926353]
[1641928759770,3.00110996,3233.5,3231.9,1.51926353]
[1641928759771,0.00803163,3232.9,3232.1,0.7733]
[1641928759976,4.50110996,3233.5,3232.4,0.90160842]
[1641928760175,0.00803163,3232.9,3232.4,0.90160842]
[1641928760574,0.0074632,3232.8,3232.4,0.90160842]
[1641928760973,0.00689478,3232.7,3232.4,0.90160842]
[1641928761177,0.00689478,3232.7,3232.6,5.99835985]
[1641928761380,20.61,3233.7,3233.4,0.98257579]
[1641928761775,1.5,3233.5,3233.4,0.98257579]
[1641928761974,19.61,3233.5,3233.4,0.98257579]
[1641928762175,19.62144217,3233.5,3233.4,0.98257579]
[1641928762780,0.01144217,3233.5,3233.4,0.98257579]
[1641928764582,0.01144217,3233.5,3233.4,3.88257579]
[1641928772484,0.01144217,3233.5,3233.4,2.9]
[1641928772881,19.62144217,3233.5,3233.4,2.9]
[1641928773726,1.51144217,3233.5,3233.4,2.9]
[1641928774131,19.62144217,3233.5,3233.4,2.9]
[1641928774331,21.06844217,3233.5,3233.4,2.9]
[1641928774532,21.06844217,3233.5,3233.4,0.0001]
[1641928774533,21.38049511,3233.5,3233.4,0.0001]
[1641928775331,21.33049511,3233.5,3233.4,0.0001]
[1641928776537,21.08049511,3233.5,3233.4,0.0001]
[1641928782831,21.06844217,3233.5,3233.4,0.0001]
[1641928785884,18.11,3233.4,3233.2,1.12758011]
[1641928786184,18.89382532,3233.3,3233.2,1.12758011]
[1641928786582,19.84382532,3233.3,3233.2,1.12758011]
[1641928787383,18.84382532,3233.3,3233.2,1.12758011]
[1641928787785,20.34382532,3233.3,3233.2,1.12758011]
[1641928788085,20.29382532,3233.3,3233.2,1.12758011]
[1641928788285,19.62030532,3233.3,3233.2,1.12758011]
[1641928790335,20.39377532,3233.3,3233.2,1.12758011]
[1641928790835,20.39377532,3233.3,3232.4,7.158]
[1641928791038,4.33574836,3233.2,3232.4,7.158]
[1641928791237,18.11,3233.1,3232.4,7.158]
[1641928791439,18.11,3232.9,3232.4,7.158]
[1641928791836,0.0074632,3232.8,3232.4,7.158]
[1641928792285,0.00689478,3232.7,3232.4,7.158]
[1641928792682,1.50632636,3232.6,3232.4,7.158]
[1641928792882,1.50632636,3232.6,3232.5,0.8435406]
[1641928793082,1.5,3232.6,3232.5,0.8435406]
[1641928794187,2.27364,3232.6,3232.5,0.8435406]
[1641928795492,1.5,3232.6,3232.5,0.8435406]
[1641928795889,19.61,3232.6,3232.5,0.8435406]
[1641928797840,1.5,3232.6,3232.5,0.8435406]
[1641928798638,1.5,3232.6,3232.5,5.3435406]
[1641928798840,18.11,3232.8,3232.5,6.1169706]
[1641928799239,0.00689478,3232.7,3232.5,6.1169706]
[1641928799639,0.00632636,3232.6,3232.5,6.1169706]
[1641928800687,0.00632636,3232.6,3232.5,8.0669706]
[1641928801088,0.00632636,3232.6,3232.5,8.64914125]
[1641928801292,2.636e-05,3232.6,3232.5,8.64914125]
[1641928801491,2.636e-05,3232.6,3232.5,8.8403206]
[1641928801692,2.636e-05,3232.6,3232.5,12.07277182]
[1641928801889,2.636e-05,3232.6,3232.5,12.67277182]
[1641928802091,1.28329261,3233.6,3232.6,6.75]
[1641928802290,1.28329261,3233.6,3233.1,1.61982703]
[1641928802495,0.00511581,3233.5,3233.2,0.54982677]
[1641928802892,0.00454738,3233.4,3233.2,0.54982677]
[1641928803290,0.00397896,3233.3,3233.2,0.54982677]
[1641928803538,0.00397896,3233.3,3233.2,6.34982677]
[1641928803732,0.00568423,3233.3,3233.2,6.34982677]
[1641928807984,0.00568423,3233.3,3233.2,6.64982677]
[1641928808385,0.00568423,3233.3,3233.2,0.54982677]
[1641928808788,0.00568423,3233.3,3233.1,2.39311703]
[1641928809194,0.00341054,3233.2,3233.1,2.39311703]
[1641928809589,0.00341054,3233.2,3233.1,0.84658703]
[1641928810396,0.00341054,3233.2,3232.9,4.6303]
[1641928810789,0.00284211,3233.1,3232.9,4.6303]
[1641928811333,0.00227369,3233.0,3232.9,4.6303]
[1641928811833,1.50227369,3233.0,3232.9,4.6303]
[1641928812031,19.61227369,3233.0,3232.9,4.6303]
[1641928813841,19.61227369,3233.0,3232.3,3.9444]
[1641928813842,0.77366,3232.8,3232.3,3.9444]
[1641928814040,18.11,3232.7,3232.3,3.9444]
[1641928814241,18.11,3232.7,3232.4,0.00113685]
[1641928814440,3.83911396,3232.6,3232.4,0.00113685]
[1641928814639,2.90918217,3232.5,3232.4,0.00113685]
[1641928814894,1.5,3232.5,3232.4,0.00113685]
[1641928815091,2.5,3232.5,3232.4,0.00113685]
[1641928815292,20.057,3232.5,3232.3,0.00170527]
[1641928815495,2.55,3232.4,3232.3,0.00170527]
[1641928815799,2.55,3232.4,3231.4,0.00682109]
[1641928815800,22.65466,3232.4,3231.4,0.00682109]
[1641928815996,1.0,3232.3,3231.4,0.00682109]
[1641928816191,18.11,3232.1,3231.4,0.00682109]
[1641928816392,0.447,3232.0,3231.7,0.98295879]
[1641928816592,1.447,3232.0,3231.7,0.98295879]
[1641928816791,18.11,3231.9,3231.8,0.00454739]
[1641928816996,0.447,3232.0,3231.8,0.00454739]
[1641928817994,0.447,3232.0,3231.8,0.77823739]
[1641928818397,0.447,3232.0,3231.9,2.85397897]
[1641928819242,1.5,3232.1,3231.9,2.85397897]
[1641928819243,1.5,3232.1,3231.9,3.55018897]
[1641928819647,1.5,3232.1,3232.0,4.90341054]
[1641928819849,1.5,3232.6,3232.2,0.77358]
[1641928820047,1.5,3232.6,3232.3,0.96108145]
[1641928820248,1.5,3232.6,3232.3,0.96278672]
[1641928820648,18.11,3232.5,3232.3,0.96278672]
[1641928822384,1.5,3232.7,3232.3,0.96278672]
[1641928822588,1.5,3232.7,3232.3,2.50979672]
[1641928822787,1.5,3232.6,3232.4,0.7735]
[1641928823886,2.5,3232.7,3232.4,0.7735]
[1641928826348,2.45,3232.7,3232.4,0.7735]
[1641928826947,1.5,3232.7,3232.4,0.7735]
[1641928828549,18.11,3232.6,3232.4,0.7735]
[1641928828751,19.61,3232.6,3232.4,0.7735]
[1641928830794,1.5,3232.5,3232.4,0.7735]
[1641928833671,1.5,3232.6,3232.4,0.7735]
[1641928834868,1.5,3232.7,3232.4,0.7735]
[1641928836472,1.5,3232.6,3232.4,0.7735]
[1641928836777,1.5,3232.5,3232.4,0.7735]
[1641928836973,19.61,3232.5,3232.3,0.96278672]
[1641928837172,20.057,3232.5,3232.3,0.96278672]
[1641928837590,1.947,3232.5,3232.3,0.96278672]
[1641928837787,1.5,3232.4,3232.3,0.96278672]
[1641928837990,1.947,3232.4,3232.3,1.54882527]
[1641928838191,20.057,3232.4,3232.3,0.00170527]
[1641928838588,21.057,3232.4,3232.2,0.0022737]
[1641928838787,1.947,3232.4,3232.2,0.0022737]
[1641928838990,1.947,3232.4,3232.3,3.91477027]
[1641928839292,1.947,3232.4,3232.3,1.11647554]
[1641928839691,0.447,3232.4,3232.3,1.11647554]
[1641928840895,1.5,3232.4,3232.3,1.11647554]
[1641928841737,0.447,3232.8,3232.3,1.11647554]
[1641928841738,1.5,3232.5,3232.3,1.11647554]
[1641928841944,1.5,3232.5,3232.3,2.66359554]
[1641928842141,1.5,3232.5,3232.3,2.51359554]
[1641928842740,0.447,3232.8,3232.3,2.51359554]
[1641928842741,1.5,3232.6,3232.3,2.51359554]
[1641928842939,5.0,3232.6,3232.3,2.51359554]
[1641928843441,5.0,3232.6,3232.4,0.77355]
[1641928843641,5.0,3232.6,3232.4,1.07355]
[1641928843839,19.61,3232.5,3232.4,0.77355]
[1641928844640,19.61,3232.5,3232.3,1.11647554]
[1641928844892,19.61,3232.4,3232.3,1.11647554]
[1641928845690,19.61,3232.4,3232.3,1.41647554]
[1641928845691,18.11,3232.4,3232.3,1.41647554]
[1641928846192,1.5,3232.5,3232.3,1.41647554]
[1641928846391,19.61,3232.5,3232.3,1.41647554]
[1641928846892,19.61,3232.5,3232.3,1.11647554]
[1641928847792,1.5,3232.4,3232.3,1.11647554]
[1641928847989,19.61,3232.4,3232.3,1.11647554]
[1641928848393,1.5,3232.4,3232.3,1.11647554]
[1641928850049,19.61,3232.4,3232.3,1.11647554]
[1641928850648,19.295,3232.4,3232.3,1.11647554]
[1641928852896,19.61,3232.4,3232.3,1.11647554]
[1641928853296,19.61,3232.4,3232.3,0.00170527]
[1641928853500,22.60457,3232.4,3232.3,0.00170527]
[1641928853797,22.60457,3232.4,3231.6,0.00568424]
[1641928853996,1.0,3232.3,3231.6,0.00568424]
[1641928854200,18.11,3232.1,3231.6,0.00568424]
[1641928854396,1.22089,3232.0,3231.7,1.13438581]
[1641928854597,18.11,3231.9,3231.7,1.13438581]
[1641928854801,1.5,3232.4,3231.7,1.13438581]
[1641928854802,18.557,3231.8,3231.7,1.13438581]
[1641928855007,19.557,3231.8,3231.5,4.7542]
[1641928855206,19.557,3231.8,3231.7,0.00511582]
[1641928855804,21.057,3231.8,3231.7,0.00511582]
[1641928856236,21.83085,3231.8,3231.7,0.00511582]
[1641928857838,21.83085,3231.8,3231.2,3.23245152]
[1641928857839,21.83085,3231.8,3231.3,0.00738951]
[1641928858039,18.11,3231.6,3231.3,0.00738951]
[1641928858240,18.11,3231.4,3231.3,0.00738951]
[1641928858441,18.557,3231.4,3231.3,0.00738951]
[1641928858642,19.557,3231.4,3231.3,0.00738951]
[1641928858843,20.057,3231.4,3231.3,0.00738951]
[1641928859041,20.057,3231.4,3231.3,3.15738951]
[1641928860095,18.557,3231.4,3231.3,3.15738951]
[1641928861797,19.557,3231.4,3231.3,0.00738951]
[1641928862700,21.057,3231.4,3231.3,0.00738951]
[1641928862902,21.83097,3231.4,3231.3,0.00738951]
[1641928863540,22.18769469,3231.4,3231.3,0.00738951]
[1641928868497,22.48769469,3231.4,3231.3,0.00738951]
[1641928868693,29.19479469,3231.4,3231.3,0.00738951]
[1641928868991,29.19479469,3231.4,3230.4,0.01250532]
[1641928868992,29.92119469,3231.4,3230.4,0.01250532]
[1641928869192,0.77415,3230.9,3230.4,0.01250532]
[1641928869393,18.11,3230.7,3230.4,0.96198953]
[1641928869593,1.447,3230.6,3230.4,1.73605953]
[1641928869794,19.557,3230.6,3230.5,2.3619369]
[1641928870196,19.557,3230.6,3230.5,0.0119369]
[1641928871845,21.057,3230.6,3230.5,2.4619369]
[1641928872947,21.057,3230.6,3230.5,0.0119369]
[1641928874801,21.057,3230.6,3230.5,4.6619369]
[1641928874802,1.947,3230.6,3230.5,4.6619369]
[1641928875000,1.5,3230.6,3230.5,4.6619369]
[1641928875805,1.5,3230.8,3230.5,4.6619369]
[1641928876002,1.5,3230.8,3230.6,0.77391]
[1641928876203,1.5,3230.8,3230.6,0.78527847]
[1641928876402,1.5,3230.8,3230.7,5.06080005]
[1641928876805,1.0,3231.2,3230.7,5.06080005]
[1641928877003,0.80832256,3231.3,3230.7,5.06080005]
[1641928877203,0.80832256,3231.3,3230.9,0.94977586]
[1641928877402,0.80832256,3231.3,3231.0,0.77384]
[1641928877603,0.80832256,3231.3,3231.0,0.78293478]
[1641928877804,0.80832256,3231.3,3231.1,0.00852636]
[1641928881156,1.80832256,3231.3,3231.1,0.00852636]
[1641928882159,1.80832256,3231.3,3231.0,0.00909478]
[1641928882809,1.5,3231.1,3231.0,0.00909478]
[1641928883411,2.99036108,3232.1,3231.1,6.45]
[1641928883615,4.07388532,3232.5,3232.0,1.05378146]
[1641928883810,0.447,3232.6,3232.0,1.05378146]
[1641928884015,0.447,3232.6,3232.1,0.00284212]
[1641928884216,1.22065,3232.6,3232.1,0.00284212]
[1641928884414,19.33065,3232.6,3232.1,0.00284212]
[1641928885220,19.33065,3232.6,3232.2,0.77359]
[1641928885421,18.11,3232.4,3232.1,0.00284212]
[1641928885621,18.88369,3232.4,3232.3,0.00170527]
[1641928885920,18.88369,3232.4,3232.1,0.00284212]
[1641928886167,1.0,3232.5,3232.1,0.00284212]
[1641928886966,1.0,3232.5,3232.2,0.77361]
[1641928887367,1.0,3232.5,3232.3,0.00170527]
[1641928888567,18.11,3232.4,3232.3,0.00170527]
[1641928889468,1.0,3232.5,3232.3,0.00170527]
[1641928890643,18.11,3232.7,3232.3,0.00170527]
[1641928890843,0.77359,3232.8,3232.7,1.088597]
[1641928891147,18.88472684,3232.8,3232.7,1.088597]
[1641928891548,18.88472684,3232.8,3232.3,0.00170527]
[1641928891941,18.88472684,3232.8,3231.9,1.2256]
[1641928891942,2.83056611,3232.7,3232.0,0.00341054]
[1641928892342,18.11,3232.4,3232.0,0.00341054]
[1641928892544,18.11,3232.4,3232.1,1.01608146]
[1641928893044,18.11,3232.4,3232.2,0.0022737]
[1641928893244,2.86147838,3232.3,3232.2,0.0022737]
[1641928893445,21.41847838,3232.3,3232.2,0.0022737]
[1641928893645,21.41847838,3232.3,3232.0,0.00341054]
[1641928893847,21.41847838,3232.3,3231.5,11.1315]
[1641928893848,21.41847838,3232.3,3231.6,0.00568424]
[1641928894148,18.11,3232.1,3231.6,0.00568424]
[1641928894345,0.77387,3232.2,3231.6,0.00568424]
[1641928894346,18.11,3231.9,3231.6,0.00568424]
[1641928894544,0.77388,3231.8,3231.6,0.00568424]
[1641928894745,18.11,3231.7,3231.6,0.00568424]
[1641928896352,18.557,3231.7,3231.6,0.00568424]
[1641928896552,19.157,3231.7,3231.6,0.00568424]
[1641928896757,18.857,3231.7,3231.1,0.00852636]
[1641928896951,18.857,3231.7,3230.6,0.01136847]
[1641928896952,0.77408,3231.4,3230.6,0.01136847]
[1641928897151,22.14940911,3231.3,3230.6,0.01136847]
[1641928897391,0.447,3231.2,3230.6,0.01136847]
[1641928897592,2.93779459,3231.1,3230.6,0.01136847]
[1641928897791,18.557,3231.0,3230.7,1.03407761]
[1641928897998,19.33105,3231.0,3230.7,1.03407761]
[1641928898197,19.33105,3231.0,3230.8,0.01023163]
[1641928899200,19.33105,3231.0,3230.6,0.01136847]
[1641928899897,19.33105,3231.0,3230.6,0.78535847]
[1641928900098,19.33105,3231.0,3230.8,0.90742247]
[1641928900497,19.33105,3231.0,3230.9,0.0096632]
[1641928903347,19.33105,3231.0,3230.6,0.01136847]
[1641928904895,19.63105,3231.0,3230.6,0.01136847]
[1641928905097,20.96247239,3230.9,3230.6,0.01136847]
[1641928905300,1.22116,3230.8,3230.6,0.01136847]
[1641928905499,1.22116,3230.8,3230.4,0.01250532]
[1641928905500,3.07867924,3230.7,3230.4,0.01250532]
[1641928905697,0.447,3230.6,3230.4,0.01250532]
[1641928905900,21.4721271,3230.5,3230.4,0.01250532]
[1641928906096,21.4721271,3230.5,3230.3,11.111181]
[1641928906097,22.2191271,3230.5,3230.3,3.22478632]
[1641928906305,8.48229885,3230.4,3230.3,3.22478632]
[1641928906497,8.48229885,3230.4,3229.5,4.1698]
[1641928906498,6.6764,3230.3,3229.5,4.1698]
[1641928906699,5.585,3230.1,3229.5,4.1698]
[1641928906898,5.585,3230.1,3229.6,0.00454739]
[1641928906899,18.11,3229.9,3229.6,0.00454739]
[1641928907100,3.0764,3229.7,3229.6,0.00454739]
[1641928907304,22.4079013,3229.7,3229.6,0.00454739]
[1641928907498,22.7079013,3229.7,3229.6,0.00454739]
[1641928908099,19.5834,3229.7,3229.6,0.00454739]
[1641928908298,18.857,3229.7,3229.6,0.00454739]
[1641928909649,18.557,3229.7,3229.6,0.00454739]
[1641928910348,0.447,3229.7,3229.6,6.53327017]
[1641928910949,0.447,3230.3,3229.6,5.95454739]
[1641928911347,0.447,3230.3,3229.7,0.00397896]
[1641928911751,18.11,3230.2,3229.7,0.00397896]
[1641928912149,18.11,3230.0,3229.7,0.00397896]
[1641928912405,18.88429,3229.9,3229.7,0.00397896]
[1641928912599,1.0,3230.1,3229.7,0.00397896]
[1641928913200,18.11,3230.0,3229.7,0.00397896]
[1641928913403,0.77432,3229.9,3229.7,0.00397896]
[1641928913600,18.11,3229.8,3229.7,0.00397896]
[1641928913799,0.77432,3229.9,3229.7,0.00397896]
[1641928915507,18.11,3230.0,3229.7,0.00397896]
[1641928915707,2.12675526,3230.1,3229.7,0.00397896]
[1641928915907,1.35250526,3230.1,3229.7,0.00397896]
[1641928918847,19.46250526,3230.1,3229.7,0.00397896]
[1641928919447,20.23674526,3230.1,3229.7,0.00397896]
[1641928921303,19.23674526,3230.1,3229.7,0.00397896]
[1641928921600,18.46250526,3230.1,3229.7,0.00397896]
[1641928922602,18.11,3229.9,3229.7,0.00397896]
[1641928922810,18.8843,3229.9,3229.7,0.00397896]
[1641928923647,0.447,3229.8,3229.7,0.00397896]
[1641928923848,18.557,3229.8,3229.7,0.00397896]
[1641928924744,0.447,3229.8,3229.7,0.00397896]
[1641928926151,0.447,3229.8,3229.7,3.30397896]
[1641928926556,0.728,3230.6,3229.8,6.45]
[1641928926754,2.87260211,3231.2,3229.8,6.45]
[1641928926755,0.447,3231.2,3230.0,0.01228072]
[1641928926953,0.77398,3231.2,3231.1,0.92207186]
[1641928927157,0.80845917,3231.6,3231.1,0.92207186]
[1641928927401,0.570941,3231.7,3231.1,0.92207186]
[1641928927602,0.00625266,3231.5,3231.1,0.92207186]
[1641928928007,0.00568423,3231.4,3231.1,0.92207186]
[1641928928205,0.77396,3231.3,3230.3,15.3765]
[1641928928404,18.11,3231.2,3230.3,15.3765]
[1641928928712,0.00397896,3231.1,3230.3,15.3765]
[1641928929102,0.00341054,3231.0,3230.3,15.3765]
[1641928929305,0.00341054,3231.0,3230.7,0.47049979]
[1641928929505,0.00284212,3230.9,3230.7,0.47049979]
[1641928929908,0.00227369,3230.8,3230.7,0.47049979]
[1641928930310,0.00397896,3230.8,3230.7,0.47049979]
[1641928930513,0.00397896,3230.8,3230.4,0.83965031]
[1641928930910,0.00170527,3230.7,3230.4,0.83965031]
[1641928931350,0.00113685,3230.6,3230.4,0.83965031]
[1641928931748,18.11,3230.8,3230.4,0.83965031]
[1641928932148,0.00170527,3230.7,3230.4,0.83965031]
[1641928932548,0.00113685,3230.6,3230.4,0.83965031]
[1641928932948,18.11,3230.8,3230.4,0.83965031]
[1641928932949,0.00170527,3230.7,3230.4,0.83965031]
[1641928933152,1.00170527,3230.7,3230.4,0.83965031]
[1641928933349,0.00113685,3230.6,3230.4,0.83965031]
[1641928936500,0.00113685,3230.6,3230.4,1.61349031]
[1641928936701,0.00113685,3230.6,3230.4,1.91349031]
[1641928936899,3.685e-05,3230.6,3230.4,1.91349031]
[1641928937105,0.7264,3232.3,3230.5,10.79552672]
[1641928937308,1.08352424,3233.0,3232.6,0.92211895]
[1641928937900,18.8364,3233.1,3232.6,0.92211895]
[1641928938102,19.60993,3233.1,3232.6,0.92211895]
[1641928938307,0.01364216,3233.0,3232.6,0.92211895]
[1641928938551,1.01364216,3233.0,3232.6,0.92211895]
[1641928938746,18.12307374,3232.9,3232.6,0.92211895]
[1641928939148,0.01250531,3232.8,3232.6,0.92211895]
[1641928939444,18.11,3232.9,3232.6,0.92211895]
[1641928939445,0.01193689,3232.7,3232.6,0.92211895]
[1641928940249,0.01193689,3232.7,3232.6,1.39562839]
[1641928941551,0.01193689,3232.7,3232.6,0.92211895]
[1641928942293,0.01193689,3232.7,3232.0,12.24803]
[1641928942496,18.12193689,3232.7,3232.0,10.701]
[1641928942695,0.01136847,3232.6,3232.0,10.701]
[1641928942898,1.01136847,3232.6,3232.0,10.701]
[1641928943098,0.01080004,3232.5,3232.0,10.701]
[1641928943505,0.01023162,3232.4,3232.2,1.1579385]
[1641928943902,0.0096632,3232.3,3232.2,1.1579385]
[1641928944100,0.0096632,3232.3,3232.0,10.701]
[1641928944502,0.00909477,3232.2,3232.0,10.701]
[1641928945001,0.00852635,3232.1,3232.0,10.701]
[1641928945406,0.00852635,3232.1,3232.0,11.70925947]
[1641928945603,0.00852635,3232.1,3232.0,1.00825947]
[1641928947855,0.00852635,3232.1,3231.9,6.5944]
[1641928948255,0.00795793,3232.0,3231.9,6.5944]
[1641928948456,18.11795793,3232.0,3231.9,6.5944]
[1641928948667,19.11795793,3232.0,3231.9,6.5944]
[1641928951503,1.00795793,3232.0,3231.9,6.5944]
[1641928951904,0.00795793,3232.0,3231.9,6.5944]
[1641928957694,0.00795793,3232.0,3231.9,9.68164974]
[1641928958098,0.00795793,3232.0,3231.9,9.71524617]
[1641928958994,0.00795793,3232.0,3231.9,6.5944]
[1641928960200,0.00795793,3232.0,3231.9,9.66949568]
[1641928960800,0.00795793,3232.0,3231.9,6.8944]
[1641928963764,0.00795793,3232.0,3231.9,9.97137652]
[1641928965398,0.00795793,3232.0,3231.9,6.8944]
[1641928965799,0.00795793,3232.0,3231.9,9.96756365]
[1641928967601,0.00795793,3232.0,3231.9,10.74104365]
[1641928967799,0.00795793,3232.0,3231.9,10.72104365]
[1641928967999,0.37838046,3232.9,3232.0,6.45]
[1641928968201,0.447,3233.6,3232.4,0.77338]
[1641928968551,18.557,3233.6,3233.4,1.10198485]
[1641928968943,3.1,3233.5,3233.4,1.10198485]
[1641928970349,21.21,3233.5,3233.0,8.4852]
[1641928970549,0.77345,3233.4,3233.0,8.4852]
[1641928970749,18.11,3233.3,3233.0,8.4852]
[1641928971148,1.00682108,3233.2,3233.0,7.2565]
[1641928971548,0.00625265,3233.1,3233.0,7.2565]
[1641928971748,0.00625265,3233.1,3233.0,1.15428924]
[1641928973695,0.00625265,3233.1,3232.9,6.6234]
[1641928973895,0.00625265,3233.1,3231.9,6.8553]
[1641928973896,0.447,3233.0,3231.9,6.8553]
[1641928974094,0.01208754,3232.7,3231.2,1.1946]
[1641928974294,0.01208754,3232.7,3231.2,1.96844]
[1641928974295,0.447,3232.6,3231.2,1.96844]
[1641928974495,0.75041054,3232.6,3231.3,0.00397897]
[1641928974715,18.11284211,3232.5,3231.5,0.50406474]
[1641928974900,0.99616,3232.2,3232.1,1.07536885]
[1641928975099,19.55313,3232.2,3232.1,1.07536885]
[1641928975298,19.55426684,3232.2,3232.1,1.07536885]
[1641928975502,20.55426684,3232.2,3232.1,1.07536885]
[1641928976362,20.33196684,3232.2,3232.1,1.07536885]
[1641928978364,20.28196684,3232.2,3232.1,1.07536885]
[1641928985653,20.28196684,3232.2,3231.7,7.54881]
[1641928985855,18.11,3232.0,3231.7,6.7751]
[1641928986056,18.8838,3231.9,3231.8,0.00113685]
[1641928986456,19.8838,3231.9,3231.8,0.00113685]
[1641928986854,19.8838,3231.9,3231.7,0.00170528]
[1641928987055,19.11,3231.8,3231.7,0.92495243]
[1641928987705,19.11,3231.8,3231.7,0.51202143]